bitfinex-derivatives/quotes_BTCF0:USTF0_20250108
["timestamp","ask_amount","ask_price","bid_price","bid_amount"]
[1736361106642,0.06540014,94793.0,94791.0,0.002]
[1736361106945,0.052759,94783.0,94782.0,0.2099]
[1736361107341,0.3608,94813.0,94782.0,0.5707]
[1736361107548,0.01242925,94814.0,94808.0,0.3608]
[1736361107741,0.052744,94811.0,94808.0,0.3608]
[1736361107937,0.052744,94811.0,94809.0,1.5]
[1736361108134,0.18816615,94810.0,94809.0,1.5]
[1736361108750,0.052744,94811.0,94809.0,1.5]
[1736361109946,0.12605104,94812.0,94809.0,1.5]
[1736361110242,0.17879504,94812.0,94810.0,0.1997]
[1736361111451,0.052744,94810.0,94809.0,1.50056]
[1736361111748,0.052744,94810.0,94809.0,1.5]
[1736361111951,0.052744,94810.0,94808.0,0.3608]
[1736361111952,0.7216,94810.0,94784.0,0.30863838]
[1736361112147,0.3608,94796.0,94785.0,0.4008]
[1736361112345,0.052758,94785.0,94784.0,0.30923838]
[1736361112643,0.052758,94785.0,94784.0,0.30863838]
[1736361113034,0.052758,94785.0,94769.0,0.30863838]
[1736361113239,0.052767,94770.0,94769.0,0.30863838]
[1736361113941,0.3608,94771.0,94769.0,0.30863838]
[1736361114744,0.001,94770.0,94769.0,0.31463838]
[1736361114951,0.413555,94792.0,94769.0,2.11463838]
[1736361115242,0.15756381,94792.0,94791.0,0.413555]
[1736361115444,0.15756381,94792.0,94791.0,0.3608]
[1736361115647,0.15756381,94792.0,94784.0,0.052759]
[1736361115848,0.052757,94788.0,94784.0,0.052759]
[1736361116047,0.3608,94790.0,94770.0,0.3608]
[1736361116242,0.052766,94772.0,94770.0,0.413567]
[1736361116549,0.052766,94772.0,94771.0,1.5]
[1736361117051,0.3608,94781.0,94771.0,1.8608]
[1736361117251,0.01223244,94783.0,94771.0,1.8608]
[1736361117755,0.052762,94779.0,94777.0,0.052763]
[1736361119555,0.001,94783.0,94782.0,0.05276]
[1736361120258,0.001,94783.0,94782.0,0.41356]
[1736361120560,0.001,94783.0,94782.0,1.91356]
[1736361120759,0.052759,94784.0,94782.0,1.5]
[1736361121058,0.052762,94778.0,94777.0,0.2104]
[1736361121448,0.052768,94767.0,94751.0,0.3608]
[1736361121649,0.052775,94755.0,94752.0,0.195]
[1736361121848,0.052776,94753.0,94752.0,0.195]
[1736361122854,0.413576,94753.0,94752.0,0.195]
[1736361123456,0.052781,94744.0,94743.0,0.30881947]
[1736361123654,0.413581,94744.0,94743.0,0.30881947]
[1736361123857,0.052785,94738.0,94737.0,0.2074]
[1736361125262,0.052785,94738.0,94737.0,1.7074]
[1736361125452,0.052785,94738.0,94737.0,1.7124]
[1736361125960,0.052785,94738.0,94737.0,1.505]
[1736361126354,0.052785,94738.0,94737.0,0.005]
[1736361126555,0.3608,94742.0,94711.0,0.30881947]
[1736361126556,0.052799,94713.0,94711.0,0.30881947]
[1736361126759,0.052799,94713.0,94712.0,1.5]
[1736361128257,0.001,94713.0,94712.0,0.007]
[1736361128458,0.053798,94713.0,94712.0,0.007]
[1736361128862,0.3608,94721.0,94719.0,0.052795]
[1736361129057,0.052786,94736.0,94720.0,0.052794]
[1736361129263,0.3608,94737.0,94727.0,0.052791]
[1736361129466,0.052788,94733.0,94728.0,0.05279]
[1736361129651,0.3608,94737.0,94729.0,0.052789]
[1736361129852,0.3608,94737.0,94714.0,0.3608]
[1736361130053,0.052798,94714.0,94712.0,0.007]
[1736361130670,0.0528,94711.0,94709.0,1.96596]
[1736361130854,0.0528,94711.0,94709.0,1.9654]
[1736361131463,0.001,94714.0,94713.0,0.052798]
[1736361131765,0.01227083,94729.0,94712.0,0.3608]
[1736361131970,0.052791,94726.0,94721.0,0.3608]
[1736361132190,0.052791,94726.0,94725.0,1.552792]
[1736361132393,0.413591,94726.0,94725.0,1.5]
[1736361132591,0.3608,94726.0,94709.0,0.4126]
[1736361132791,0.0528,94710.0,94709.0,0.4126]
[1736361132983,0.0528,94710.0,94709.0,0.1971]
[1736361133190,0.05272223,94710.0,94709.0,0.1971]
[1736361133385,0.052805,94701.0,94700.0,0.4608]
[1736361133695,0.052805,94701.0,94700.0,0.1]
[1736361134085,0.413605,94701.0,94700.0,0.1]
[1736361134987,0.413605,94701.0,94700.0,0.103]
[1736361135184,0.413605,94701.0,94700.0,1.603]
[1736361135388,0.413605,94701.0,94700.0,0.103]
[1736361136188,0.052817,94680.0,94679.0,0.2082]
[1736361136589,0.052817,94680.0,94679.0,1.7082]
[1736361136796,0.413614,94685.0,94679.0,1.7082]
[1736361137000,0.3608,94685.0,94679.0,1.7082]
[1736361137295,0.3608,94701.0,94697.0,0.052807]
[1736361137493,0.052807,94699.0,94698.0,0.052807]
[1736361138185,0.3608,94701.0,94680.0,0.3608]
[1736361138391,0.413605,94701.0,94700.0,1.5]
[1736361141095,0.414605,94701.0,94700.0,1.5]
[1736361141297,0.228209,94705.0,94700.0,1.5]
[1736361141494,0.052804,94703.0,94693.0,0.3608]
[1736361141792,0.052804,94703.0,94680.0,0.3608]
[1736361141793,0.052816,94681.0,94680.0,0.3608]
[1736361143702,0.1964,94702.0,94680.0,0.3608]
[1736361144000,0.3608,94715.0,94701.0,0.3608]
[1736361144205,0.00088001,94723.0,94714.0,0.3608]
[1736361144405,0.55812,94729.0,94714.0,0.3608]
[1736361144606,0.56931813,94729.0,94703.0,0.2027]
[1736361144791,0.052803,94704.0,94703.0,0.2027]
[1736361145306,0.052803,94704.0,94703.0,1.5]
[1736361145997,0.052803,94705.0,94703.0,1.5]
[1736361147402,0.052803,94705.0,94703.0,1.501]
[1736361148797,0.12621224,94730.0,94703.0,1.501]
[1736361148994,0.011721,94723.0,94720.0,0.3608]
[1736361149199,0.011721,94723.0,94721.0,0.052794]
[1736361149391,0.011721,94723.0,94721.0,0.457194]
[1736361149597,0.12621224,94730.0,94721.0,0.4044]
[1736361149802,0.12621224,94730.0,94729.0,0.3608]
[1736361150304,0.18907657,94741.0,94729.0,0.3608]
[1736361150604,0.18907657,94741.0,94740.0,1.8608]
[1736361151198,0.052779,94749.0,94741.0,0.052783]
[1736361151398,0.052779,94749.0,94740.0,1.8608]
[1736361151399,0.052783,94741.0,94740.0,1.5006]
[1736361151715,0.01187965,94753.0,94738.0,0.3608]
[1736361151716,0.052784,94739.0,94738.0,0.3608]
[1736361152007,0.052784,94739.0,94738.0,1.8608]
[1736361152192,0.052784,94739.0,94738.0,0.3608]
[1736361153198,0.052788,94731.0,94730.0,0.3608]
[1736361153398,0.052788,94731.0,94713.0,0.3608]
[1736361153399,0.3608,94733.0,94713.0,0.3608]
[1736361153603,0.052798,94714.0,94713.0,0.3608]
[1736361154197,0.052802,94706.0,94705.0,0.3608]
[1736361154906,0.052802,94706.0,94696.0,0.3608]
[1736361155115,0.052808,94695.0,94694.0,0.24543322]
[1736361155615,0.052808,94697.0,94694.0,0.3608]
[1736361156111,0.01172295,94704.0,94694.0,0.3608]
[1736361156310,0.052808,94696.0,94694.0,0.3608]
[1736361156812,0.052812,94688.0,94687.0,1.5]
[1736361157610,0.052814,94685.0,94684.0,0.3608]
[1736361158209,0.052808,94696.0,94675.0,0.3608]
[1736361158210,0.052816,94681.0,94675.0,0.3608]
[1736361158421,0.052819,94676.0,94675.0,0.3608]
[1736361159615,0.001,94681.0,94675.0,0.3608]
[1736361159817,0.052817,94679.0,94675.0,0.3608]
[1736361160016,0.042817,94679.0,94675.0,0.3608]
[1736361160517,0.052818,94678.0,94675.0,0.3608]
[1736361160909,0.001,94681.0,94675.0,0.3608]
[1736361161115,0.01208818,94693.0,94680.0,0.3608]
[1736361161414,0.052809,94694.0,94692.0,0.3608]
[1736361161915,0.3608,94712.0,94698.0,0.052807]
[1736361162119,0.3608,94712.0,94692.0,0.3608]
[1736361162120,0.37250213,94712.0,94704.0,0.3608]
[1736361162304,0.052809,94694.0,94692.0,0.3608]
[1736361162509,0.052813,94688.0,94684.0,0.413615]
[1736361162906,0.001,94693.0,94684.0,0.3608]
[1736361163107,0.05281,94692.0,94684.0,0.3608]
[1736361163407,0.052814,94685.0,94684.0,0.3608]
[1736361163604,0.052814,94685.0,94684.0,1.8608]
[1736361163811,0.052812,94689.0,94684.0,1.913615]
[1736361164118,0.052813,94688.0,94684.0,1.913615]
[1736361164421,0.001,94693.0,94684.0,1.913615]
[1736361164422,0.052814,94685.0,94684.0,1.8608]
[1736361165009,0.052814,94685.0,94684.0,1.8658]
[1736361165611,0.053814,94685.0,94684.0,1.8658]
[1736361166416,0.414614,94685.0,94684.0,0.005]
[1736361167120,0.053814,94685.0,94684.0,0.005]
[1736361169216,0.001,94685.0,94684.0,0.005]
[1736361169417,0.17204511,94694.0,94693.0,0.05281]
[1736361169617,0.052808,94696.0,94695.0,0.052808]
[1736361169921,0.16041877,94710.0,94693.0,0.3608]
[1736361169922,0.052806,94700.0,94693.0,0.3608]
[1736361170118,0.052804,94703.0,94699.0,0.052806]
[1736361170321,0.3723583,94712.0,94703.0,0.052804]
[1736361170524,0.16041877,94720.0,94711.0,0.413599]
[1736361170715,0.052799,94712.0,94711.0,0.3608]
[1736361171227,0.052797,94716.0,94715.0,0.052797]
[1736361171715,0.052798,94714.0,94711.0,0.413599]
[1736361171923,0.052798,94714.0,94713.0,0.052798]
[1736361172623,0.052791,94726.0,94713.0,1.5]
[1736361172813,0.052798,94714.0,94713.0,1.5]
[1736361173218,0.052798,94714.0,94712.0,0.2123]
[1736361173517,0.052798,94713.0,94712.0,0.2123]
[1736361175022,0.0646506,94713.0,94712.0,0.2123]
[1736361175328,0.0716506,94713.0,94712.0,0.2133]
[1736361181733,0.059798,94713.0,94712.0,0.2133]
[1736361181930,0.552786,94736.0,94712.0,0.2133]
[1736361182130,0.00092,94736.0,94724.0,0.3608]
[1736361182323,0.052797,94715.0,94712.0,0.2133]
[1736361182523,0.05279,94729.0,94712.0,0.2133]
[1736361182719,0.15770497,94738.0,94724.0,0.3608]
[1736361183024,0.052791,94727.0,94725.0,0.208]
[1736361183432,0.09467216,94733.0,94725.0,0.208]
[1736361183619,0.09467216,94733.0,94732.0,0.3608]
[1736361183827,0.189784,94740.0,94732.0,0.3608]
[1736361184118,0.137,94740.0,94738.0,0.052784]
[1736361184719,0.137,94740.0,94733.0,0.3608]
[1736361184720,0.15770497,94744.0,94742.0,0.052782]
[1736361184934,0.06463064,94753.0,94745.0,0.05278]
[1736361185134,0.26041877,94760.0,94743.0,0.3608]
[1736361185434,0.052783,94740.0,94734.0,0.3608]
[1736361185738,0.052786,94736.0,94734.0,0.3608]
[1736361186432,0.052789,94730.0,94729.0,0.3608]
[1736361186624,0.052785,94737.0,94729.0,0.3608]
[1736361186930,0.052786,94736.0,94729.0,0.3608]
[1736361187133,0.052787,94735.0,94729.0,0.3608]
[1736361187628,0.052789,94731.0,94729.0,0.3608]
[1736361187828,0.052789,94731.0,94729.0,0.004]
[1736361188034,0.052797,94715.0,94713.0,0.24543322]
[1736361188626,0.052797,94715.0,94713.0,0.13183622]
[1736361188925,0.052802,94707.0,94706.0,1e-08]
[1736361189130,0.413602,94707.0,94699.0,0.37032607]
[1736361189329,0.052814,94686.0,94682.0,0.3608]
[1736361189628,0.052815,94683.0,94682.0,0.3608]
[1736361189938,0.052812,94689.0,94682.0,0.3608]
[1736361190126,0.16041877,94695.0,94682.0,0.3608]
[1736361190321,0.052806,94700.0,94688.0,0.052812]
[1736361190626,0.052806,94699.0,94691.0,0.3608]
[1736361191021,0.3501944,94709.0,94691.0,0.3608]
[1736361191231,0.3501944,94709.0,94699.0,0.3608]
[1736361191826,0.052802,94708.0,94700.0,0.197]
[1736361192021,0.052805,94702.0,94700.0,0.197]
[1736361192438,0.3608,94705.0,94691.0,0.003]
[1736361192630,0.05281,94693.0,94691.0,0.003]
[1736361193329,0.052808,94696.0,94691.0,0.003]
[1736361193530,0.21050997,94701.0,94691.0,0.003]
[1736361193738,0.21050997,94701.0,94693.0,0.052809]
[1736361193922,0.21050997,94701.0,94698.0,0.3608]
[1736361193923,0.15770497,94701.0,94698.0,0.3608]
[1736361194130,0.15770497,94701.0,94699.0,0.052806]
[1736361194327,0.18907657,94707.0,94706.0,0.052802]
[1736361194630,0.18907657,94707.0,94706.0,0.413602]
[1736361194830,0.3810081,94720.0,94706.0,0.413602]
[1736361194831,0.22058933,94720.0,94706.0,0.413602]
[1736361195030,0.052795,94719.0,94713.0,1.5]
[1736361195232,0.18913299,94720.0,94713.0,1.5]
[1736361195434,0.20049432,94720.0,94718.0,0.3608]
[1736361196123,0.052798,94714.0,94713.0,1.5006]
[1736361196331,0.3608,94719.0,94688.0,0.3608]
[1736361196332,0.052806,94699.0,94688.0,0.3608]
[1736361196526,0.052812,94689.0,94688.0,0.3608]
[1736361197037,0.052812,94689.0,94685.0,0.18491322]
[1736361197038,0.052814,94686.0,94685.0,0.18491322]
[1736361197439,0.052814,94686.0,94684.0,0.3608]
[1736361197733,0.052814,94686.0,94679.0,1.50056]
[1736361197939,0.3608,94683.0,94663.0,0.3608]
[1736361198240,0.052821,94672.0,94663.0,0.3608]
[1736361198434,0.052824,94667.0,94664.0,1.5]
[1736361198630,0.052825,94666.0,94664.0,1.5]
[1736361198933,0.052832,94652.0,94636.0,0.3608]
[1736361199139,0.3608,94655.0,94645.0,0.3608]
[1736361199442,0.052834,94649.0,94645.0,0.3608]
[1736361200726,0.413631,94655.0,94645.0,0.3608]
[1736361200931,0.052824,94668.0,94654.0,0.3608]
[1736361201138,0.052825,94665.0,94658.0,0.052829]
[1736361201540,0.052825,94665.0,94664.0,0.009]
[1736361202043,0.052827,94662.0,94653.0,0.3608]
[1736361202225,0.3608,94668.0,94654.0,0.004]
[1736361202425,0.052825,94666.0,94654.0,0.004]
[1736361202636,0.052825,94666.0,94654.0,0.052831]
[1736361202837,0.052814,94685.0,94665.0,0.3608]
[1736361203040,0.52205877,94700.0,94677.0,0.3608]
[1736361203232,0.52205877,94700.0,94689.0,0.3608]
[1736361203233,0.052811,94691.0,94689.0,0.3608]
[1736361203838,0.53271915,94700.0,94689.0,0.3608]
[1736361204032,0.05281,94692.0,94689.0,0.3608]
[1736361204442,0.05281,94692.0,94689.0,0.413612]
[1736361204743,0.05281,94692.0,94689.0,0.3608]
[1736361205127,0.052811,94691.0,94690.0,1.5]
[1736361205828,0.003,94692.0,94690.0,1.552811]
[1736361206127,0.003,94692.0,94690.0,1.974711]
[1736361206330,0.01147488,94709.0,94690.0,1.9219]
[1736361206528,0.052804,94704.0,94700.0,0.3608]
[1736361206736,0.16041877,94710.0,94705.0,0.052803]
[1736361206936,0.17194234,94710.0,94700.0,0.3608]
[1736361207135,0.052803,94704.0,94700.0,0.3608]
[1736361207938,0.052803,94704.0,94700.0,0.413605]
[1736361208133,0.01152357,94710.0,94700.0,0.3608]
[1736361208340,0.16041877,94720.0,94700.0,0.413605]
[1736361208540,0.16041877,94710.0,94690.0,1.92246]
[1736361208839,0.42516666,94716.0,94695.0,0.3608]
[1736361208840,0.36041877,94700.0,94695.0,0.3608]
[1736361209041,0.052808,94697.0,94695.0,0.3608]
[1736361209239,0.2,94700.0,94697.0,0.052807]
[1736361210044,0.2,94700.0,94695.0,0.3608]
[1736361210242,0.052811,94691.0,94690.0,0.00056]
[1736361210444,0.5773,94699.0,94687.0,0.3608]
[1736361210745,0.052812,94688.0,94687.0,0.3608]
[1736361211345,0.2165,94699.0,94687.0,0.3608]
[1736361211541,0.052812,94689.0,94687.0,0.3608]
[1736361211731,0.05281,94693.0,94687.0,0.3608]
[1736361211936,0.052807,94698.0,94689.0,0.052812]
[1736361212343,0.003,94699.0,94688.0,0.206]
[1736361212641,0.052812,94689.0,94688.0,0.206]
[1736361212847,0.052812,94689.0,94687.0,0.3608]
[1736361213049,0.052809,94695.0,94687.0,0.052813]
[1736361213245,0.052813,94688.0,94686.0,0.3608]
[1736361213546,0.3608,94699.0,94677.0,0.3608]
[1736361213748,0.052815,94684.0,94678.0,0.052818]
[1736361213942,0.16041877,94687.0,94678.0,0.052818]
[1736361214143,0.16041877,94687.0,94671.0,0.206]
[1736361214450,0.16041877,94687.0,94677.0,0.052818]
[1736361214641,0.16041877,94687.0,94672.0,0.3608]
[1736361214843,0.21323177,94687.0,94682.0,0.3608]
[1736361215249,0.052814,94686.0,94682.0,0.3608]
[1736361215546,0.052814,94686.0,94683.0,0.052815]
[1736361215938,0.01120831,94687.0,94685.0,0.052814]
[1736361216139,0.3608,94691.0,94682.0,0.3608]
[1736361216339,0.052814,94686.0,94682.0,0.3608]
[1736361216540,0.052814,94686.0,94682.0,1.913615]
[1736361216739,0.3608,94691.0,94682.0,1.8608]
[1736361216939,0.3721051,94691.0,94682.0,1.8608]
[1736361217140,0.4249161,94691.0,94685.0,0.052814]
[1736361217350,0.3721051,94691.0,94682.0,1.86136]
[1736361217643,0.252806,94700.0,94690.0,0.3608]
[1736361217848,0.21122539,94700.0,94699.0,0.052806]
[1736361218151,0.2,94700.0,94699.0,0.052806]
[1736361218647,0.2,94700.0,94699.0,1.764706]
[1736361219038,0.008,94700.0,94699.0,1.618512]
[1736361220535,0.1,94720.0,94701.0,0.052805]
[1736361220846,0.1,94720.0,94699.0,1.865706]
[1736361220847,0.052796,94719.0,94711.0,0.0528]
[1736361221044,0.11164911,94720.0,94717.0,0.052796]
[1736361221242,0.1,94720.0,94719.0,0.052795]
[1736361221943,0.1,94720.0,94719.0,1.552795]
[1736361223840,0.1,94720.0,94719.0,1.553795]
[1736361224349,0.1,94720.0,94719.0,1.552795]
[1736361224545,0.1,94720.0,94719.0,1.557795]
[1736361225150,0.1,94720.0,94719.0,1.554795]
[1736361225342,0.12584681,94737.0,94719.0,1.554795]
[1736361225343,0.12584681,94737.0,94736.0,0.052786]
[1736361225650,0.0115808,94738.0,94736.0,0.052786]
[1736361225842,0.12584681,94739.0,94737.0,0.2065]
[1736361226337,0.052785,94738.0,94737.0,0.2065]
[1736361227351,0.01130642,94741.0,94737.0,0.2065]
[1736361227540,0.01130642,94741.0,94738.0,0.052784]
[1736361227940,0.12584681,94751.0,94739.0,0.3608]
[1736361228145,0.052779,94749.0,94739.0,0.3608]
[1736361228444,0.052781,94744.0,94739.0,0.3608]
[1736361228837,0.152783,94740.0,94739.0,1.8608]
[1736361229148,0.052785,94738.0,94737.0,0.2095]
[1736361229740,0.413585,94738.0,94737.0,0.2095]
[1736361229942,0.413585,94738.0,94719.0,0.3608]
[1736361229943,0.052795,94720.0,94719.0,0.3608]
[1736361230740,0.052791,94726.0,94719.0,0.3608]
[1736361230946,0.2027,94731.0,94719.0,0.3608]
[1736361231147,0.001,94720.0,94719.0,0.421595]
[1736361234348,0.001,94720.0,94719.0,1.921595]
[1736361234945,0.1,94740.0,94721.0,0.105588]
[1736361235144,0.152783,94740.0,94739.0,0.3608]
[1736361236545,0.152783,94740.0,94739.0,1.8608]
[1736361237553,0.152783,94740.0,94739.0,0.3608]
[1736361238253,0.154783,94740.0,94739.0,0.3608]
[1736361238656,0.102,94740.0,94739.0,0.413584]
[1736361239054,0.1,94740.0,94739.0,0.413584]
[1736361239248,0.1,94740.0,94739.0,1.913584]
[1736361239951,0.1,94740.0,94739.0,1.914584]
[1736361240965,0.052777,94751.0,94739.0,1.8618]
[1736361241152,0.052777,94751.0,94749.0,0.3608]
[1736361241554,0.1,94760.0,94752.0,0.052776]
[1736361241741,0.052775,94756.0,94752.0,0.052776]
[1736361242057,0.052775,94755.0,94752.0,0.052776]
[1736361242247,0.052776,94754.0,94752.0,0.052776]
[1736361243158,0.004,94756.0,94750.0,0.2123]
[1736361243354,0.004,94756.0,94755.0,0.052775]
[1736361243744,0.004,94756.0,94749.0,0.3608]
[1736361243961,0.052778,94750.0,94749.0,0.3608]
[1736361244255,0.052776,94753.0,94750.0,0.052778]
[1736361244458,0.3648,94756.0,94749.0,0.3608]
[1736361244657,0.15749696,94754.0,94739.0,0.3608]
[1736361244846,0.052783,94740.0,94739.0,0.3608]
[1736361245048,0.052788,94731.0,94726.0,1.552791]
[1736361245349,0.052795,94719.0,94717.0,0.3608]
[1736361245750,0.052795,94719.0,94717.0,1.8608]
[1736361245953,0.052795,94719.0,94717.0,1.5]
[1736361246355,0.052795,94719.0,94696.0,0.052808]
[1736361246554,0.3608,94713.0,94696.0,0.052808]
[1736361246755,0.3608,94713.0,94708.0,1.5]
[1736361246961,0.052801,94709.0,94708.0,1.5]
[1736361247153,0.3608,94713.0,94708.0,1.5]
[1736361247455,0.001,94719.0,94712.0,0.3608]
[1736361247652,0.001,94719.0,94718.0,0.052796]
[1736361248464,0.3608,94724.0,94718.0,0.052796]
[1736361248763,0.3608,94724.0,94712.0,0.3608]
[1736361249165,0.001,94719.0,94718.0,0.009]
[1736361249765,0.052796,94719.0,94718.0,0.009]
[1736361250766,0.10416643,94719.0,94718.0,0.009]
[1736361251362,0.052801,94709.0,94708.0,1.50064]
[1736361251563,0.052801,94709.0,94708.0,1.5]
[1736361253265,0.055801,94709.0,94708.0,1.5]
[1736361255155,0.003,94709.0,94708.0,1.5]
[1736361256264,0.3608,94713.0,94708.0,1.5]
[1736361256464,0.3608,94713.0,94710.0,0.0528]
[1736361256865,0.3608,94713.0,94701.0,0.3608]
[1736361256866,0.052804,94703.0,94673.0,0.3608]
[1736361257064,0.052812,94688.0,94687.0,0.21930954]
[1736361257370,0.052827,94662.0,94655.0,0.3608]
[1736361257558,0.413627,94662.0,94645.0,0.3608]
[1736361257757,0.413627,94662.0,94648.0,1.5]
[1736361257963,0.3608,94662.0,94648.0,1.50064]
[1736361258269,0.052833,94651.0,94638.0,0.25834]
[1736361258470,0.16041877,94650.0,94638.0,0.2055]
[1736361258671,0.3608,94662.0,94646.0,0.3608]
[1736361258871,0.3608,94662.0,94661.0,0.001]
[1736361258872,0.3658,94662.0,94661.0,0.001]
[1736361259374,0.052825,94665.0,94646.0,0.3608]
[1736361259570,0.001,94651.0,94650.0,0.052834]
[1736361259758,0.17188049,94671.0,94650.0,1.5]
[1736361259965,0.16041877,94660.0,94656.0,0.3608]
[1736361260163,0.16041877,94660.0,94659.0,0.052829]
[1736361260365,0.16041877,94660.0,94656.0,0.3608]
[1736361260572,0.052831,94655.0,94650.0,1.50056]
[1736361260767,0.413631,94655.0,94650.0,1.5]
[1736361260964,0.3608,94655.0,94650.0,1.5]
[1736361261161,0.052833,94652.0,94650.0,1.5]
[1736361262971,0.052833,94652.0,94645.0,0.052836]
[1736361263481,0.3608,94655.0,94554.0,0.37870521]
[1736361263482,0.3608,94646.0,94621.0,0.3608]
[1736361263673,0.16041877,94640.0,94633.0,0.201]
[1736361263877,0.3608,94646.0,94634.0,0.052842]
[1736361264287,0.052839,94641.0,94636.0,0.052841]
[1736361264779,0.052839,94641.0,94633.0,0.5618]
[1736361264981,0.052839,94641.0,94634.0,0.052842]
[1736361265178,0.16041877,94643.0,94633.0,0.3608]
[1736361265371,0.052848,94624.0,94623.0,1.50056]
[1736361265576,0.3608,94624.0,94611.0,0.3608]
[1736361265775,0.16041877,94621.0,94611.0,0.3608]
[1736361265979,0.052854,94615.0,94612.0,1.5]
[1736361267076,0.05285,94621.0,94612.0,1.5]
[1736361267269,0.3618,94624.0,94612.0,1.5]
[1736361267475,0.052851,94619.0,94612.0,1.5]
[1736361267878,0.16041877,94622.0,94612.0,1.5]
[1736361268075,0.3618,94624.0,94612.0,1.5]
[1736361268274,0.3618,94624.0,94615.0,0.052853]
[1736361268476,0.001,94624.0,94620.0,0.3608]
[1736361268680,0.3608,94634.0,94623.0,0.052848]
[1736361268880,0.16041877,94630.0,94623.0,0.052848]
[1736361269086,0.16041877,94630.0,94620.0,0.3608]
[1736361269286,0.16041877,94630.0,94629.0,1.5]
[1736361269287,0.21326377,94630.0,94629.0,1.5]
[1736361269479,0.052845,94630.0,94629.0,1.5]
[1736361269975,0.005,94634.0,94629.0,1.8608]
[1736361270183,0.005,94634.0,94633.0,0.052843]
[1736361270587,0.005,94634.0,94632.0,0.052844]
[1736361270781,0.005,94634.0,94633.0,1.6928]
[1736361271779,0.27905877,94643.0,94635.0,0.052842]
[1736361272493,0.27905877,94643.0,94633.0,1.6938]
[1736361272676,0.27905877,94643.0,94639.0,0.052839]
[1736361273081,0.27905877,94643.0,94635.0,0.01324313]
[1736361273280,0.27905877,94643.0,94636.0,0.052841]
[1736361273987,0.052839,94642.0,94636.0,0.052841]
[1736361274583,0.27905877,94643.0,94633.0,1.7047765]
[1736361274875,0.16041877,94660.0,94638.0,0.3608]
[1736361275283,0.052837,94645.0,94638.0,0.3608]
[1736361276291,0.16041877,94650.0,94639.0,0.052839]
[1736361276477,0.052838,94643.0,94639.0,0.052839]
[1736361276791,0.052838,94643.0,94638.0,0.003]
[1736361276990,0.37199647,94655.0,94638.0,0.003]
[1736361277479,0.052839,94641.0,94638.0,0.003]
[1736361277680,0.052839,94640.0,94638.0,0.003]
[1736361278387,0.052839,94640.0,94608.0,0.3608]
[1736361278388,0.052856,94610.0,94608.0,0.3608]
[1736361279982,0.053856,94610.0,94608.0,0.3688]
[1736361281287,0.414656,94610.0,94608.0,0.008]
[1736361282286,0.413656,94610.0,94601.0,0.1908]
[1736361282478,0.052857,94609.0,94608.0,0.002]
[1736361283390,0.052859,94604.0,94601.0,0.1908]
[1736361283584,0.05286,94603.0,94601.0,0.1908]
[1736361283993,0.05286,94603.0,94602.0,1.5]
[1736361284488,0.052861,94601.0,94595.0,0.3608]
[1736361284886,0.052861,94601.0,94596.0,0.052864]
[1736361285192,0.052861,94601.0,94600.0,1.6]
[1736361286102,0.052861,94601.0,94600.0,1.61308111]
[1736361287897,0.052858,94607.0,94600.0,1.61308111]
[1736361288302,0.052858,94607.0,94603.0,0.3608]
[1736361288505,0.001,94632.0,94603.0,0.3608]
[1736361288696,0.7641,94637.0,94603.0,0.3608]
[1736361288697,0.12633287,94624.0,94622.0,0.052849]
[1736361288999,0.17918087,94624.0,94623.0,0.1941]
[1736361289200,0.12633287,94624.0,94612.0,0.052855]
[1736361289391,0.05285,94621.0,94612.0,0.052855]
[1736361289598,0.05285,94621.0,94613.0,0.052854]
[1736361289993,0.16041877,94622.0,94605.0,0.1941]
[1736361290199,0.01111222,94627.0,94605.0,0.1941]
[1736361290200,0.052857,94609.0,94605.0,0.1941]
[1736361290600,0.052855,94612.0,94606.0,1.552858]
[1736361290798,0.052856,94610.0,94606.0,1.5]
[1736361290993,0.16041877,94615.0,94606.0,1.5]
[1736361291193,0.15791609,94610.0,94606.0,1.5]
[1736361291400,0.15791609,94610.0,94609.0,0.052856]
[1736361291996,0.15791609,94610.0,94609.0,1.552856]
[1736361292403,0.15791609,94614.0,94609.0,1.5]
[1736361292603,0.15791609,94614.0,94611.0,0.052855]
[1736361292809,0.15791609,94614.0,94613.0,0.052854]
[1736361293503,0.15791609,94615.0,94609.0,1.5]
[1736361293709,0.15791609,94615.0,94614.0,0.052854]
[1736361294300,0.15791609,94615.0,94614.0,0.413654]
[1736361294505,0.15791609,94616.0,94614.0,0.413654]
[1736361296012,0.15791609,94615.0,94614.0,0.413654]
[1736361296309,0.21076909,94615.0,94614.0,0.3608]
[1736361296812,0.21076909,94615.0,94609.0,1.51117149]
[1736361297109,0.21076909,94615.0,94610.0,0.052856]
[1736361297412,0.052853,94615.0,94612.0,0.3608]
[1736361297708,0.052854,94614.0,94612.0,0.3608]
[1736361297912,0.052854,94613.0,94612.0,0.3608]
[1736361298606,0.052856,94610.0,94609.0,1.51173149]
[1736361298907,0.052856,94610.0,94609.0,1.51117149]
[1736361301008,0.052856,94610.0,94609.0,0.01117149]
[1736361301210,0.052858,94606.0,94605.0,0.246959]
[1736361301614,0.052855,94612.0,94607.0,0.052857]
[1736361301811,0.004,94614.0,94612.0,0.052855]
[1736361302113,0.004,94613.0,94612.0,0.052855]
[1736361302418,0.1,94620.0,94619.0,0.052851]
[1736361302611,0.1,94620.0,94619.0,0.413651]